[Event "*** Titled Tuesday Blitz"]
[Site "Chess.com"]
[Date "2020.05.26"]
[Round "7"]
[White "XiaoKangZhong"]
[Black "XDPS"]
[Result "0-1"]
[WhiteElo "2429"]
[BlackElo "2694"]
[TimeControl "180+1"]
[EndTime "11:22:35 PDT"]
[Termination "XDPS won by resignation"]

1. e4 {[%clk 0:03:00.9]} 1... e5 {[%clk 0:02:55.4]} 2. Nf3 {[%clk 0:03:00.6]}
2... Nc6 {[%clk 0:02:54.6]} 3. Bc4 {[%clk 0:03:00.6]} 3... Bc5 {[%clk
0:02:53.5]} 4. c3 {[%clk 0:02:59]} 4... Nf6 {[%clk 0:02:53.1]} 5. d3 {[%clk
0:02:58.8]} 5... O-O {[%clk 0:02:52.8]} 6. Nbd2 {[%clk 0:02:58]} 6... d6 {[%clk
0:02:51.9]} 7. O-O {[%clk 0:02:57.5]} 7... Bb6 {[%clk 0:02:51.1]} 8. Bb3 {[%clk
0:02:56.3]} 8... Ne7 {[%clk 0:02:48.1]} 9. h3 {[%clk 0:02:49.5]} 9... Ng6 {[%clk
0:02:48.4]} 10. Re1 {[%clk 0:02:48.1]} 10... c6 {[%clk 0:02:48.4]} 11. Nf1
{[%clk 0:02:47.1]} 11... Be6 {[%clk 0:02:35.1]} 12. Ng3 {[%clk 0:02:41.8]} 12...
Re8 {[%clk 0:02:33.8]} 13. Be3 {[%clk 0:02:26.7]} 13... d5 {[%clk 0:02:25.9]}
14. Bxb6 {[%clk 0:02:23.3]} 14... axb6 {[%clk 0:02:13.4]} 15. exd5 {[%clk
0:02:20.3]} 15... Bxd5 {[%clk 0:02:13.5]} 16. Ne4 {[%clk 0:02:20.7]} 16... Bxb3
{[%clk 0:02:00.7]} 17. Qxb3 {[%clk 0:02:19.9]} 17... Nf4 {[%clk 0:01:54.7]} 18.
Nxf6+ {[%clk 0:02:17.4]} 18... Qxf6 {[%clk 0:01:53.9]} 19. Re3 {[%clk
0:02:07.5]} 19... Rad8 {[%clk 0:01:46]} 20. Qxb6 {[%clk 0:02:05.4]} 20... Nd5
{[%clk 0:01:45.6]} 21. Qc5 {[%clk 0:01:50.6]} 21... Nxe3 {[%clk 0:01:43.5]} 22.
Qxe3 {[%clk 0:01:50.1]} 22... Qd6 {[%clk 0:01:41]} 23. Rd1 {[%clk 0:01:47.8]}
23... h6 {[%clk 0:01:37.3]} 24. Ne1 {[%clk 0:01:21.9]} 24... Qd5 {[%clk
0:01:21.6]} 25. b3 {[%clk 0:01:17.7]} 25... Qa5 {[%clk 0:01:14.9]} 26. Qd2
{[%clk 0:01:16.2]} 26... Rd7 {[%clk 0:01:02.6]} 27. b4 {[%clk 0:01:11.1]} 27...
Qa6 {[%clk 0:00:56.6]} 28. c4 {[%clk 0:01:04.1]} 28... Red8 {[%clk 0:00:48.3]}
29. Qc3 {[%clk 0:01:03]} 29... Qxa2 {[%clk 0:00:39.4]} 30. b5 {[%clk 0:00:47.3]}
30... cxb5 {[%clk 0:00:38.6]} 31. cxb5 {[%clk 0:00:47]} 31... Qd5 {[%clk
0:00:38.1]} 32. Qb4 {[%clk 0:00:43.5]} 32... Rc8 {[%clk 0:00:29.3]} 33. Kh2
{[%clk 0:00:35]} 33... e4 {[%clk 0:00:24.1]} 34. d4 {[%clk 0:00:34.9]} 34...
Qd6+ {[%clk 0:00:23.2]} 35. Qxd6 {[%clk 0:00:33.9]} 35... Rxd6 {[%clk
0:00:24.1]} 36. Kg3 {[%clk 0:00:34.3]} 36... g5 {[%clk 0:00:22.9]} 37. f3 {[%clk
0:00:32.3]} 37... e3 {[%clk 0:00:17.9]} 38. Rd3 {[%clk 0:00:30.4]} 38... Re8
{[%clk 0:00:17.1]} 39. Nc2 {[%clk 0:00:24]} 39... f5 {[%clk 0:00:14.8]} 40. f4
{[%clk 0:00:22.9]} 40... Re4 {[%clk 0:00:15.2]} 41. fxg5 {[%clk 0:00:21.7]}
41... hxg5 {[%clk 0:00:16.1]} 42. Kf3 {[%clk 0:00:22.1]} 42... e2 {[%clk
0:00:16.5]} 43. Ne1 {[%clk 0:00:21.3]} 43... Rdxd4 {[%clk 0:00:13.9]} 44. Rc3
{[%clk 0:00:19.5]} 44... Rd7 {[%clk 0:00:10.6]} 45. Rc8+ {[%clk 0:00:19]} 45...
Kf7 {[%clk 0:00:10.6]} 46. Rh8 {[%clk 0:00:17.9]} 46... Re5 {[%clk 0:00:10.1]}
47. Rh7+ {[%clk 0:00:14.6]} 47... Ke6 {[%clk 0:00:10.6]} 48. Rh6+ {[%clk
0:00:14.9]} 48... Kd5 {[%clk 0:00:10.1]} 49. Rg6 {[%clk 0:00:15.1]} 49... g4+
{[%clk 0:00:10]} 50. hxg4 {[%clk 0:00:14.2]} 50... fxg4+ {[%clk 0:00:10.9]} 51.
Kxg4 {[%clk 0:00:09.5]} 51... Rf7 {[%clk 0:00:11.4]} 52. Nd3 {[%clk 0:00:06.9]}
52... e1=Q {[%clk 0:00:10.7]} 53. Nxe1 {[%clk 0:00:06.4]} 53... Rxe1 {[%clk
0:00:11.6]} 54. Rg8 {[%clk 0:00:05.8]} 54... Re4+ {[%clk 0:00:11]} 55. Kg3
{[%clk 0:00:05.3]} 55... Re6 {[%clk 0:00:10.3]} 56. Rd8+ {[%clk 0:00:05.1]}
56... Kc5 {[%clk 0:00:10.7]} 57. Rc8+ {[%clk 0:00:04.6]} 57... Kxb5 {[%clk
0:00:11]} 58. Kh2 {[%clk 0:00:03.6]} 58... Rg6 {[%clk 0:00:11.2]} 59. Rc2 {[%clk
0:00:02.6]} 59... Rh7+ {[%clk 0:00:11.4]} 60. Kg1 {[%clk 0:00:02.6]} 60... Rhg7
{[%clk 0:00:12.3]} 61. Rd2 {[%clk 0:00:02.5]} 61... Kc4 {[%clk 0:00:12.3]} 62.
Rc2+ {[%clk 0:00:02.4]} 62... Kb3 {[%clk 0:00:12.5]} 63. Rf2 {[%clk 0:00:02.6]}
63... b5 {[%clk 0:00:13]} 64. g4 {[%clk 0:00:03.1]} 64... Rxg4+ {[%clk
0:00:12.7]} 65. Kf1 {[%clk 0:00:03]} 65... b4 {[%clk 0:00:13.6]} 66. Rf3+ {[%clk
0:00:02.9]} 66... Ka4 {[%clk 0:00:13.6]} 67. Rf8 {[%clk 0:00:02.6]} 67... Rg1+
{[%clk 0:00:13.7]} 68. Kf2 {[%clk 0:00:02.1]} 68... R1g6 {[%clk 0:00:14.1]} 69.
Ra8+ {[%clk 0:00:01.4]} 69... Kb3 {[%clk 0:00:14.6]} 70. Rb8 {[%clk 0:00:01.7]}
70... Rc6 {[%clk 0:00:14.8]} 71. Kf3 {[%clk 0:00:01.7]} 71... Rc4 {[%clk
0:00:15]} 72. Ke3 {[%clk 0:00:02]} 72... Rg3+ {[%clk 0:00:15]} 73. Kd2 {[%clk
0:00:02.8]} 73... Rc2+ {[%clk 0:00:14.9]} 0-1

[Event "*** Titled Tuesday Blitz"]
[Site "Chess.com"]
[Date "2020.05.26"]
[Round "7"]
[White "zala02"]
[Black "enriquetejedor"]
[Result "0-1"]
[WhiteElo "2242"]
[BlackElo "2441"]
[TimeControl "180+1"]
[EndTime "11:22:44 PDT"]
[Termination "enriquetejedor won on time"]

1. d4 {[%clk 0:02:30.4]} 1... d5 {[%clk 0:02:21.5]} 2. c4 {[%clk 0:02:28.1]}
2... c6 {[%clk 0:02:14.7]} 3. Nf3 {[%clk 0:02:27.4]} 3... Nf6 {[%clk 0:02:10.4]}
4. e3 {[%clk 0:02:22.6]} 4... Bg4 {[%clk 0:01:58]} 5. h3 {[%clk 0:02:16.6]} 5...
Bh5 {[%clk 0:01:49.6]} 6. g4 {[%clk 0:02:15.3]} 6... Bg6 {[%clk 0:01:48.6]} 7.
Ne5 {[%clk 0:02:15.3]} 7... Nbd7 {[%clk 0:01:46]} 8. Nc3 {[%clk 0:02:10.1]} 8...
e6 {[%clk 0:01:36.1]} 9. Qb3 {[%clk 0:01:39.6]} 9... Qb6 {[%clk 0:01:34.6]} 10.
c5 {[%clk 0:01:14.6]} 10... Qc7 {[%clk 0:01:18.7]} 11. Nxg6 {[%clk 0:01:10.6]}
11... hxg6 {[%clk 0:01:18.4]} 12. Bg2 {[%clk 0:01:11.2]} 12... e5 {[%clk
0:01:17.7]} 13. Ne2 {[%clk 0:01:06.2]} 13... O-O-O {[%clk 0:01:13.7]} 14. Bd2
{[%clk 0:01:03.4]} 14... Re8 {[%clk 0:00:45.5]} 15. Qd3 {[%clk 0:00:57.2]} 15...
e4 {[%clk 0:00:43.4]} 16. Qa3 {[%clk 0:00:50.1]} 16... b6 {[%clk 0:00:34.3]} 17.
b4 {[%clk 0:00:43.4]} 17... b5 {[%clk 0:00:29.2]} 18. Qb3 {[%clk 0:00:42.4]}
18... Nxg4 {[%clk 0:00:17.8]} 19. hxg4 {[%clk 0:00:40.8]} 19... Rxh1+ {[%clk
0:00:18.7]} 20. Bxh1 {[%clk 0:00:41.2]} 20... Qh2 {[%clk 0:00:19.4]} 21. O-O-O
{[%clk 0:00:40.8]} 21... Qxf2 {[%clk 0:00:19.6]} 22. Nc3 {[%clk 0:00:34.2]}
22... Be7 {[%clk 0:00:16.7]} 23. a4 {[%clk 0:00:33.6]} 23... a6 {[%clk
0:00:14.9]} 24. axb5 {[%clk 0:00:33.6]} 24... axb5 {[%clk 0:00:15.8]} 25. Kc2
{[%clk 0:00:29.8]} 25... Kb7 {[%clk 0:00:14.7]} 26. Qb1 {[%clk 0:00:28.4]} 26...
f6 {[%clk 0:00:06.7]} 27. Rf1 {[%clk 0:00:26.4]} 27... Qg3 {[%clk 0:00:05.8]}
28. Rg1 {[%clk 0:00:25]} 28... Qh2 {[%clk 0:00:05]} 29. Bg2 {[%clk 0:00:20.6]}
29... Qh4 {[%clk 0:00:04.2]} 30. Bf1 {[%clk 0:00:20.3]} 30... Rh8 {[%clk
0:00:03.6]} 31. Be2 {[%clk 0:00:19]} 31... Qf2 {[%clk 0:00:03.4]} 32. Rf1 {[%clk
0:00:17.9]} 32... Qg3 {[%clk 0:00:03]} 33. Qa2 {[%clk 0:00:16.2]} 33... Ra8
{[%clk 0:00:02.2]} 34. Qb1 {[%clk 0:00:15.3]} 34... Nf8 {[%clk 0:00:02.3]} 35.
Qb2 {[%clk 0:00:13.5]} 35... Ne6 {[%clk 0:00:02.5]} 36. Nxb5 {[%clk 0:00:10.4]}
36... cxb5 {[%clk 0:00:02.3]} 37. Bxb5 {[%clk 0:00:11.3]} 37... Nc7 {[%clk
0:00:01.7]} 38. Be2 {[%clk 0:00:10.8]} 38... Qg2 {[%clk 0:00:01.7]} 39. Re1
{[%clk 0:00:06.9]} 39... Kc8 {[%clk 0:00:02.2]} 40. b5 {[%clk 0:00:06.3]} 40...
Qg3 {[%clk 0:00:02.3]} 41. b6 {[%clk 0:00:05.1]} 41... Rb8 {[%clk 0:00:02.6]}
42. Qa2 {[%clk 0:00:01.5]} 42... Ne6 {[%clk 0:00:02.6]} 43. Qa6+ {[%clk
0:00:02.1]} 43... Kd8 {[%clk 0:00:02.5]} 44. Rb1 {[%clk 0:00:02.6]} 44... Bxc5
{[%clk 0:00:01.5]} 45. dxc5 {[%clk 0:00:03.5]} 45... Nxc5 {[%clk 0:00:02.2]} 46.
Qa7 {[%clk 0:00:03.4]} 46... Qd6 {[%clk 0:00:02.2]} 47. Qc7+ {[%clk 0:00:03.2]}
47... Qxc7 {[%clk 0:00:02.1]} 48. bxc7+ {[%clk 0:00:04.1]} 48... Kxc7 {[%clk
0:00:03]} 49. Rxb8 {[%clk 0:00:04.8]} 49... Kxb8 {[%clk 0:00:03.9]} 50. Bb4
{[%clk 0:00:05.3]} 50... Ne6 {[%clk 0:00:04]} 51. Bd6+ {[%clk 0:00:05]} 51...
Kc8 {[%clk 0:00:04.2]} 52. Kc3 {[%clk 0:00:05]} 52... Kd7 {[%clk 0:00:04.5]} 53.
Bg3 {[%clk 0:00:04.9]} 53... f5 {[%clk 0:00:04.9]} 54. gxf5 {[%clk 0:00:04.7]}
54... gxf5 {[%clk 0:00:05.8]} 55. Bh5 {[%clk 0:00:05.1]} 55... Ke7 {[%clk
0:00:04.1]} 56. Bg6 {[%clk 0:00:05.2]} 56... Kf6 {[%clk 0:00:03.7]} 57. Be8
{[%clk 0:00:05.4]} 57... g5 {[%clk 0:00:03.5]} 58. Bd7 {[%clk 0:00:04.9]} 58...
f4 {[%clk 0:00:03.5]} 59. exf4 {[%clk 0:00:04.6]} 59... gxf4 {[%clk 0:00:02.4]}
60. Bh4+ {[%clk 0:00:04.6]} 60... Ke5 {[%clk 0:00:02.5]} 61. Bf2 {[%clk
0:00:02.9]} 61... d4+ {[%clk 0:00:02.2]} 62. Kd2 {[%clk 0:00:01.9]} 62... e3+
{[%clk 0:00:02.4]} 63. Bxe3 {[%clk 0:00:01.2]} 63... dxe3+ {[%clk 0:00:02.4]}
64. Ke2 {[%clk 0:00:01.7]} 64... Nd4+ {[%clk 0:00:03.3]} 65. Kd3 {[%clk
0:00:02]} 65... Ne6 {[%clk 0:00:02.6]} 66. Ke2 {[%clk 0:00:01.6]} 66... Kf6
{[%clk 0:00:02.3]} 67. Kf3 {[%clk 0:00:01.4]} 67... Kf5 {[%clk 0:00:02.8]} 0-1

[Event "*** Titled Tuesday Blitz"]
[Site "Chess.com"]
[Date "2020.05.26"]
[Round "7"]
[White "Tayson_7"]
[Black "RaunakSadhwani2005"]
[Result "0-1"]
[WhiteElo "2640"]
[BlackElo "2839"]
[TimeControl "180+1"]
[EndTime "11:22:48 PDT"]
[Termination "RaunakSadhwani2005 won by checkmate"]

1. e4 {[%clk 0:03:00.9]} 1... c6 {[%clk 0:02:59.4]} 2. d4 {[%clk 0:02:59.5]}
2... d5 {[%clk 0:02:58.4]} 3. f3 {[%clk 0:02:59.9]} 3... Qb6 {[%clk 0:02:57.2]}
4. Nc3 {[%clk 0:02:59.5]} 4... e6 {[%clk 0:02:56.9]} 5. a3 {[%clk 0:02:57.3]}
5... Nf6 {[%clk 0:02:56.3]} 6. e5 {[%clk 0:02:57.1]} 6... Nfd7 {[%clk 0:02:56]}
7. f4 {[%clk 0:02:56.6]} 7... c5 {[%clk 0:02:56.1]} 8. Nf3 {[%clk 0:02:57]} 8...
Nc6 {[%clk 0:02:56.1]} 9. Na4 {[%clk 0:02:48.6]} 9... Qa5+ {[%clk 0:02:53.8]}
10. Bd2 {[%clk 0:02:43.8]} 10... Qc7 {[%clk 0:02:40]} 11. Be3 {[%clk 0:02:42]}
11... Qa5+ {[%clk 0:02:35.1]} 12. Bd2 {[%clk 0:02:37]} 12... Qc7 {[%clk
0:02:33.6]} 13. Be3 {[%clk 0:02:37]} 13... cxd4 {[%clk 0:02:15.4]} 14. Nxd4
{[%clk 0:02:36.9]} 14... Nxd4 {[%clk 0:02:15.2]} 15. Bxd4 {[%clk 0:02:36.9]}
15... Qa5+ {[%clk 0:02:12.5]} 16. Nc3 {[%clk 0:02:36.4]} 16... Bc5 {[%clk
0:02:12.4]} 17. b4 {[%clk 0:02:36.5]} 17... Bxd4 {[%clk 0:02:10.6]} 18. Qxd4
{[%clk 0:01:40.7]} 18... Qb6 {[%clk 0:02:05.9]} 19. Nb5 {[%clk 0:01:40.9]} 19...
Qxd4 {[%clk 0:02:05.2]} 20. Nxd4 {[%clk 0:01:41.8]} 20... Nb6 {[%clk 0:02:05]}
21. Bd3 {[%clk 0:01:36.4]} 21... Bd7 {[%clk 0:02:03.1]} 22. h4 {[%clk
0:01:36.1]} 22... h5 {[%clk 0:02:02.4]} 23. f5 {[%clk 0:01:27.2]} 23... exf5
{[%clk 0:02:01]} 24. Bxf5 {[%clk 0:01:27.4]} 24... Nc4 {[%clk 0:01:44.9]} 25.
O-O {[%clk 0:01:22.2]} 25... Nxe5 {[%clk 0:01:24.2]} 26. Rae1 {[%clk 0:01:17.9]}
26... f6 {[%clk 0:01:22.4]} 27. Be6 {[%clk 0:01:03.6]} 27... O-O-O {[%clk
0:00:33.4]} 28. Bxd5 {[%clk 0:00:56.4]} 28... Bg4 {[%clk 0:00:25.3]} 29. Be6+
{[%clk 0:00:44.8]} 29... Kb8 {[%clk 0:00:24.2]} 30. c3 {[%clk 0:00:45.4]} 30...
Rd6 {[%clk 0:00:15.7]} 31. Bf5 {[%clk 0:00:33.3]} 31... a6 {[%clk 0:00:08.8]}
32. Re3 {[%clk 0:00:29.8]} 32... Rhd8 {[%clk 0:00:06.6]} 33. Rfe1 {[%clk
0:00:23]} 33... Ka7 {[%clk 0:00:06.9]} 34. Bc2 {[%clk 0:00:21.1]} 34... Rc8
{[%clk 0:00:06.1]} 35. Bb3 {[%clk 0:00:20.3]} 35... Rd7 {[%clk 0:00:06.3]} 36.
Be6 {[%clk 0:00:18.6]} 36... Bxe6 {[%clk 0:00:06.1]} 37. Nxe6 {[%clk 0:00:19.5]}
37... Rc4 {[%clk 0:00:06.7]} 38. Rf1 {[%clk 0:00:17.2]} 38... Rxh4 {[%clk
0:00:05.5]} 39. Nd4 {[%clk 0:00:15.1]} 39... Rg4 {[%clk 0:00:04.6]} 40. a4
{[%clk 0:00:15.5]} 40... h4 {[%clk 0:00:04.8]} 41. b5 {[%clk 0:00:15.6]} 41...
axb5 {[%clk 0:00:04.9]} 42. axb5 {[%clk 0:00:15.6]} 42... Kb6 {[%clk 0:00:05.4]}
43. Ra1 {[%clk 0:00:15.6]} 43... Rc7 {[%clk 0:00:05.7]} 44. Ra8 {[%clk
0:00:15.6]} 44... Rd7 {[%clk 0:00:04.7]} 45. Rf8 {[%clk 0:00:14.1]} 45... Kc5
{[%clk 0:00:04.5]} 46. Rc8+ {[%clk 0:00:14.1]} 46... Kd5 {[%clk 0:00:04.7]} 47.
Ne2 {[%clk 0:00:13.8]} 47... Ke6 {[%clk 0:00:03.8]} 48. Kf2 {[%clk 0:00:12.6]}
48... Kf7 {[%clk 0:00:03.5]} 49. Nd4 {[%clk 0:00:12.8]} 49... Rf4+ {[%clk
0:00:03.6]} 50. Ke2 {[%clk 0:00:13.3]} 50... Rg4 {[%clk 0:00:03.7]} 51. Kf2
{[%clk 0:00:13.8]} 51... Kg6 {[%clk 0:00:04.3]} 52. b6 {[%clk 0:00:14.1]} 52...
Rd6 {[%clk 0:00:04]} 53. Rc7 {[%clk 0:00:12.2]} 53... Rxb6 {[%clk 0:00:04.4]}
54. Ne2 {[%clk 0:00:12.4]} 54... Rb2 {[%clk 0:00:04.7]} 55. Kg1 {[%clk
0:00:12.8]} 55... Kh6 {[%clk 0:00:04.5]} 56. Re7 {[%clk 0:00:12]} 56... Kg6
{[%clk 0:00:04.6]} 57. Kh2 {[%clk 0:00:10.9]} 57... Rg5 {[%clk 0:00:03.8]} 58.
Nf4+ {[%clk 0:00:10.4]} 58... Kf5 {[%clk 0:00:04.3]} 59. Ne2 {[%clk 0:00:09.7]}
59... Ng4+ {[%clk 0:00:04.6]} 60. Kh3 {[%clk 0:00:10.3]} 60... Nxe3 {[%clk
0:00:05.5]} 61. Rxe3 {[%clk 0:00:10.9]} 61... Kg6 {[%clk 0:00:05.9]} 62. Kxh4
{[%clk 0:00:10.9]} 62... Rh5+ {[%clk 0:00:05.7]} 63. Kg3 {[%clk 0:00:10.9]}
63... Re5 {[%clk 0:00:05.6]} 64. Nf4+ {[%clk 0:00:10.4]} 64... Kf7 {[%clk
0:00:06.1]} 65. Rf3 {[%clk 0:00:10.7]} 65... g5 {[%clk 0:00:05.9]} 66. Nh5
{[%clk 0:00:10.5]} 66... Re6 {[%clk 0:00:05.9]} 67. Kg4 {[%clk 0:00:10.5]} 67...
Rbe2 {[%clk 0:00:05.7]} 68. g3 {[%clk 0:00:10.5]} 68... R2e4+ {[%clk 0:00:05.6]}
69. Kf5 {[%clk 0:00:11.1]} 69... R6e5# {[%clk 0:00:05.6]} 0-1

[Event "*** Titled Tuesday Blitz"]
[Site "Chess.com"]
[Date "2020.05.26"]
[Round "7"]
[White "JulAnt"]
[Black "Zmeeed63"]
[Result "0-1"]
[WhiteElo "2389"]
[BlackElo "2238"]
[TimeControl "180+1"]
[EndTime "11:22:50 PDT"]
[Termination "Zmeeed63 won by resignation"]

1. e4 {[%clk 0:03:00.9]} 1... Nc6 {[%clk 0:02:59.4]} 2. Nf3 {[%clk 0:02:59.4]}
2... d6 {[%clk 0:02:59.6]} 3. d4 {[%clk 0:02:56.9]} 3... Bg4 {[%clk 0:02:59.4]}
4. Be2 {[%clk 0:02:56]} 4... Nf6 {[%clk 0:02:56.9]} 5. Nc3 {[%clk 0:02:55.2]}
5... g6 {[%clk 0:02:55.5]} 6. h3 {[%clk 0:02:55.2]} 6... Bxf3 {[%clk 0:02:55.4]}
7. Bxf3 {[%clk 0:02:55.1]} 7... Bg7 {[%clk 0:02:55.1]} 8. Be3 {[%clk 0:02:55.4]}
8... O-O {[%clk 0:02:55.2]} 9. Qd2 {[%clk 0:02:55.8]} 9... e5 {[%clk 0:02:55.6]}
10. d5 {[%clk 0:02:55.3]} 10... Nd4 {[%clk 0:02:49.3]} 11. Bxd4 {[%clk
0:02:48.6]} 11... exd4 {[%clk 0:02:50.2]} 12. Qxd4 {[%clk 0:02:48.9]} 12... Nxe4
{[%clk 0:02:49.5]} 13. Qd3 {[%clk 0:02:38.6]} 13... Nxc3 {[%clk 0:02:49.2]} 14.
bxc3 {[%clk 0:02:39.5]} 14... Re8+ {[%clk 0:02:49.7]} 15. Kf1 {[%clk 0:02:34.1]}
15... Qf6 {[%clk 0:02:49]} 16. Rb1 {[%clk 0:02:31.8]} 16... Qxc3 {[%clk
0:02:43.8]} 17. Qxc3 {[%clk 0:02:25.6]} 17... Bxc3 {[%clk 0:02:44.7]} 18. g3
{[%clk 0:02:25.9]} 18... b6 {[%clk 0:02:41.8]} 19. Kg2 {[%clk 0:02:26.1]} 19...
a5 {[%clk 0:02:31.7]} 20. h4 {[%clk 0:02:24.7]} 20... h5 {[%clk 0:02:31.1]} 21.
Rbd1 {[%clk 0:02:20.2]} 21... Kg7 {[%clk 0:02:29.5]} 22. Rd3 {[%clk 0:02:20.2]}
22... Bb4 {[%clk 0:02:24.9]} 23. Bd1 {[%clk 0:02:16]} 23... Re5 {[%clk
0:02:18.5]} 24. f3 {[%clk 0:02:11.2]} 24... Rae8 {[%clk 0:02:18.2]} 25. g4
{[%clk 0:02:10.7]} 25... Be1 {[%clk 0:01:47.3]} 26. Rd4 {[%clk 0:01:40.8]} 26...
Bb4 {[%clk 0:01:18.9]} 27. f4 {[%clk 0:01:20.5]} 27... Re4 {[%clk 0:00:59.3]}
28. Rxe4 {[%clk 0:01:20.5]} 28... Rxe4 {[%clk 0:01:00.2]} 29. gxh5 {[%clk
0:01:19.9]} 29... gxh5 {[%clk 0:00:34.2]} 30. Bxh5 {[%clk 0:01:20.8]} 30... Rxf4
{[%clk 0:00:33.7]} 31. Bf3 {[%clk 0:01:20.8]} 31... Rc4 {[%clk 0:00:32.8]} 32.
Bd1 {[%clk 0:01:14.5]} 32... Rd4 {[%clk 0:00:32.5]} 33. h5 {[%clk 0:01:08.7]}
33... Rxd5 {[%clk 0:00:29.6]} 34. h6+ {[%clk 0:01:08.9]} 34... Kh8 {[%clk
0:00:30]} 35. h7 {[%clk 0:01:07.2]} 35... Rg5+ {[%clk 0:00:29.1]} 36. Kf3 {[%clk
0:01:01.1]} 36... Rg7 {[%clk 0:00:29]} 37. Ke4 {[%clk 0:01:01.4]} 37... Rxh7
{[%clk 0:00:28.9]} 38. Rxh7+ {[%clk 0:00:57.1]} 38... Kxh7 {[%clk 0:00:29.8]}
39. Kf5 {[%clk 0:00:57.6]} 39... Kg7 {[%clk 0:00:28.6]} 40. Bf3 {[%clk
0:00:57.6]} 40... Bc3 {[%clk 0:00:22.4]} 41. Bd5 {[%clk 0:00:57]} 41... Kf8
{[%clk 0:00:18.5]} 42. Bc6 {[%clk 0:00:56.2]} 42... Ke7 {[%clk 0:00:18.6]} 43.
Bd5 {[%clk 0:00:52.1]} 43... Bd4 {[%clk 0:00:16.3]} 44. Bc6 {[%clk 0:00:51.4]}
44... Be5 {[%clk 0:00:15.1]} 45. Bd5 {[%clk 0:00:50.4]} 45... a4 {[%clk
0:00:15.5]} 46. Bc6 {[%clk 0:00:30.2]} 46... a3 {[%clk 0:00:15]} 47. Bd5 {[%clk
0:00:30.6]} 47... Kd7 {[%clk 0:00:13.2]} 48. Bxf7 {[%clk 0:00:30.2]} 48... Kc6
{[%clk 0:00:13.8]} 49. Ke4 {[%clk 0:00:29.2]} 49... Kc5 {[%clk 0:00:14.2]} 50.
Kd3 {[%clk 0:00:29.1]} 50... Kb4 {[%clk 0:00:14.1]} 51. Kd2 {[%clk 0:00:24.6]}
51... c6 {[%clk 0:00:10.9]} 52. Kc1 {[%clk 0:00:21.6]} 52... d5 {[%clk
0:00:10.2]} 53. Be8 {[%clk 0:00:21.2]} 53... c5 {[%clk 0:00:10.1]} 54. Bf7
{[%clk 0:00:21.6]} 54... d4 {[%clk 0:00:10.4]} 55. Be6 {[%clk 0:00:21]} 55...
Kc3 {[%clk 0:00:10.4]} 56. Bf5 {[%clk 0:00:19.6]} 56... b5 {[%clk 0:00:10.7]}
57. Bd7 {[%clk 0:00:19.4]} 57... b4 {[%clk 0:00:11.1]} 58. Be6 {[%clk
0:00:15.3]} 58... Bf4+ {[%clk 0:00:12]} 59. Kb1 {[%clk 0:00:15]} 59... c4 {[%clk
0:00:12.9]} 60. Bg4 {[%clk 0:00:09.7]} 60... d3 {[%clk 0:00:12.3]} 61. cxd3
{[%clk 0:00:10]} 61... cxd3 {[%clk 0:00:12.7]} 62. Bd1 {[%clk 0:00:05.9]} 62...
Kd2 {[%clk 0:00:12.2]} 63. Bg4 {[%clk 0:00:05.2]} 63... Ke1 {[%clk 0:00:12.4]}
64. Bf5 {[%clk 0:00:03.6]} 64... d2 {[%clk 0:00:11.8]} 65. Bc2 {[%clk
0:00:03.9]} 65... d1=Q+ {[%clk 0:00:11.9]} 66. Bxd1 {[%clk 0:00:04.5]} 66...
Kxd1 {[%clk 0:00:12.8]} 67. Ka1 {[%clk 0:00:05.1]} 67... Kd2 {[%clk 0:00:11.7]}
68. Kb1 {[%clk 0:00:05.3]} 68... Kc3 {[%clk 0:00:11.8]} 69. Ka1 {[%clk
0:00:05.1]} 69... b3 {[%clk 0:00:12.4]} 70. axb3 {[%clk 0:00:05.2]} 70... Kxb3
{[%clk 0:00:13.3]} 71. Kb1 {[%clk 0:00:05.6]} 71... Be5 {[%clk 0:00:14.2]} 0-1